bitfinex/quotes_ETHUSD_20250517
["timestamp","ask_amount","ask_price","bid_price","bid_amount"]
[1747524180842,4.04465296,2472.4,2472.3,0.38344062]
[1747524186846,12.04465296,2472.4,2472.3,0.38344062]
[1747524187154,12.82985296,2472.4,2472.3,0.38344062]
[1747524187449,4.04498017,2472.2,2472.1,0.48157504]
[1747524187618,19.61498017,2472.2,2472.1,0.48157504]
[1747524188349,27.61498017,2472.2,2472.1,0.48157504]
[1747524190132,27.61498017,2472.2,2471.4,0.8328]
[1747524190133,8.0,2472.1,2471.4,1.31437504]
[1747524190450,8.0,2472.1,2471.4,0.48157504]
[1747524190451,4.04612583,2471.5,2471.4,0.48157504]
[1747524190656,7.785,2471.5,2471.4,0.48157504]
[1747524191058,3.38387617,2474.1,2471.4,0.48157504]
[1747524191059,7.785,2471.8,2471.5,0.7614]
[1747524191557,7.785,2471.8,2471.6,0.38395793]
[1747524192720,4.04522015,2472.1,2471.7,0.7614]
[1747524192958,15.572,2472.0,2471.7,0.7614]
[1747524193129,7.786,2472.1,2471.7,4.8071575]
[1747524193367,7.786,2472.0,2471.7,5.7308189]
[1747524193523,8.0,2472.3,2471.7,1.68510117]
[1747524193874,7.786,2472.2,2472.0,0.7614]
[1747524194016,7.786,2472.1,2472.0,0.7614]
[1747524194819,7.786,2472.1,2472.0,1.14519899]
[1747524195021,11.8311438,2472.1,2472.0,0.38379899]
[1747524196842,4.04589931,2471.7,2471.5,0.7614]
[1747524197029,7.785,2471.6,2471.5,0.7614]
[1747524197663,11.83096212,2471.6,2471.3,1.55188848]
[1747524198064,11.83096212,2471.6,2471.4,0.38408251]
[1747524198436,11.83106966,2471.6,2471.4,0.38408251]
[1747524198632,4.04612583,2471.5,2471.4,0.38408251]
[1747524200869,4.04612583,2471.5,2471.0,0.29704651]
[1747524201167,4.04631009,2471.4,2470.9,4.8084074]
[1747524201382,19.61821051,2471.5,2471.0,4.04689317]
[1747524201866,19.61821051,2471.5,2471.1,0.38399321]
[1747524202024,4.04621051,2471.5,2471.1,0.38399321]
[1747524202231,19.61930176,2471.4,2471.2,0.7614]
[1747524202653,15.573,2471.4,2471.2,0.7614]
[1747524202862,19.61929195,2471.4,2471.2,0.7614]
[1747524203063,19.61929195,2471.4,2471.3,0.38399321]
[1747524203469,15.573,2471.4,2471.3,0.38399321]
[1747524205270,19.61928955,2471.4,2471.3,0.38399321]
[1747524205458,15.573,2471.4,2471.3,0.38399321]
[1747524205764,7.786,2471.5,2471.3,0.38399321]
[1747524206965,11.83219533,2471.5,2471.3,0.38399321]
[1747524207168,7.786,2471.5,2471.3,0.38399321]
[1747524207980,4.04628955,2471.4,2471.3,0.38399321]
[1747524208552,4.87428955,2471.4,2471.3,0.38399321]
[1747524209784,4.04645328,2471.3,2471.2,0.38399321]
[1747524213050,4.04686526,2471.1,2470.9,0.38399321]
[1747524213391,7.786,2471.0,2470.9,0.38399321]
[1747524220200,4.04678675,2471.1,2471.0,4.81109065]
[1747524220201,7.786,2471.1,2471.0,4.81109065]
[1747524220400,7.786,2471.2,2471.0,4.81109065]
[1747524220990,7.786,2471.2,2471.0,0.7643]
[1747524221167,4.04631968,2471.4,2471.0,0.7643]
[1747524221366,7.786,2471.3,2471.0,0.7643]
[1747524221910,7.786,2471.3,2471.1,0.38399321]
[1747524222198,7.786,2471.4,2471.1,0.38399321]
[1747524222404,7.786,2471.3,2471.1,0.38399321]
[1747524223006,7.786,2471.3,2471.2,0.38399321]
[1747524224705,7.786,2471.3,2471.1,0.38399321]
[1747524226006,7.785,2471.2,2471.1,0.38399321]
[1747524226211,18.26,2471.8,2471.1,5.0795437]
[1747524226375,7.785,2471.6,2471.3,4.04635722]
[1747524226579,11.83108226,2471.6,2471.2,0.8035]
[1747524226791,11.83108226,2471.6,2471.2,4.85010167]
[1747524227407,4.04620596,2471.5,2471.2,0.8035]
[1747524227708,4.0464142,2471.4,2471.2,0.8035]
[1747524228013,4.0464142,2471.4,2471.0,5.33200537]
[1747524228180,4.0464142,2471.4,2471.3,0.86691563]
[1747524229006,11.83104467,2471.6,2471.3,0.86691563]
[1747524229736,11.83106619,2471.6,2471.3,0.86691563]
[1747524230635,11.83106619,2471.6,2471.4,0.38534059]
[1747524231041,4.04612583,2471.5,2471.4,0.38534059]
[1747524232236,4.04587248,2471.7,2471.4,0.38534059]
[1747524232430,4.04572888,2471.8,2471.4,1.19804059]
[1747524232616,15.57,2471.7,2471.4,1.19804059]
[1747524232817,7.784,2471.6,2471.4,1.19804059]
[1747524233016,4.04580382,2471.7,2471.4,1.19804059]
[1747524233217,7.784,2471.6,2471.4,1.19804059]
[1747524233914,7.784,2471.6,2471.4,5.24429659]
[1747524234116,7.786,2471.8,2471.5,4.04610159]
[1747524234440,7.784,2471.6,2471.4,4.85891433]
[1747524235744,7.784,2471.6,2471.5,0.38523763]
[1747524238656,4.04552497,2471.9,2471.5,0.38523763]
[1747524238954,7.782,2471.6,2471.5,0.38523763]
[1747524239558,7.782,2471.6,2471.4,5.3405639]
[1747524240575,4.04538146,2472.0,2471.4,5.3405639]
[1747524240576,7.785,2472.0,2471.6,4.04586118]
[1747524240917,8.0,2472.0,2471.5,4.04604312]
[1747524241031,12.0453869,2472.0,2471.7,0.38501368]
[1747524241236,7.782,2471.9,2471.7,1.16171368]
[1747524241665,7.785,2472.1,2471.8,4.04551794]
[1747524241865,7.782,2472.0,2471.8,4.97078408]
[1747524242486,4.04472006,2472.4,2471.9,4.04547109]
[1747524242690,7.785,2472.4,2472.1,4.04505504]
[1747524242838,7.781,2472.3,2472.0,4.82193262]
[1747524243043,7.781,2472.3,2472.1,4.04513533]
[1747524243347,7.781,2472.3,2472.1,0.9252297]
[1747524243542,7.781,2472.3,2472.0,4.82192594]
[1747524244073,7.781,2472.3,2472.1,0.38501368]
[1747524246166,4.04490862,2472.3,2472.2,0.38501368]
[1747524246366,7.78,2472.3,2472.2,0.38501368]
[1747524246965,7.784,2472.5,2472.2,4.42997718]
[1747524247177,15.563,2472.5,2472.3,1.21969772]
[1747524247535,15.563,2472.5,2472.4,0.38501368]
[1747524247851,4.04431141,2472.7,2472.4,0.38501368]
[1747524248179,7.779,2472.5,2472.4,0.38501368]
[1747524248765,4.04434331,2472.6,2472.4,0.38501368]
[1747524248965,11.82334331,2472.6,2472.4,0.38501368]
[1747524249786,11.82334331,2472.6,2472.5,0.38501368]
[1747524251191,11.82334331,2472.6,2472.3,1.08025568]
[1747524251687,7.779,2472.6,2472.3,1.08025568]
[1747524251891,11.82336941,2472.6,2472.3,1.08025568]
[1747524252958,11.82336941,2472.6,2472.4,0.38329352]
[1747524254951,7.779,2472.6,2472.3,1.08025568]
[1747524255259,11.82335045,2472.6,2472.3,1.08025568]
[1747524258202,11.82335045,2472.6,2472.4,0.38336141]
[1747524259298,11.81935045,2472.6,2472.4,0.38336141]
[1747524260004,5.29761376,2472.9,2472.3,1.08025568]
[1747524260187,10.8396,2473.2,2472.5,0.7678]
[1747524260502,7.774,2473.1,2472.9,0.7827]
[1747524261097,4.83270057,2473.4,2473.0,4.04364901]
[1747524261297,8.5656,2473.4,2473.0,4.04364901]
[1747524261498,7.774,2473.3,2473.0,4.93067381]
[1747524262372,21.51294645,2473.5,2473.0,4.93067381]
[1747524262575,11.81702937,2473.4,2473.0,0.8870248]
[1747524262774,7.774,2473.4,2473.0,0.8870248]
[1747524262978,11.8170859,2473.4,2473.0,4.93068008]
[1747524263292,4.04319091,2473.3,2473.0,0.8870248]
[1747524264511,11.81707141,2473.4,2473.0,0.8870248]
[1747524264806,4.04326101,2473.3,2472.9,0.7827]
[1747524266195,4.04326101,2473.3,2472.9,4.82652684]
[1747524266399,4.04326101,2473.3,2473.0,0.38309169]
[1747524268103,4.04326101,2473.3,2472.9,4.82651199]
[1747524268104,4.04326101,2473.3,2473.1,0.38309169]
[1747524268870,4.04326101,2473.3,2473.0,0.38309169]
[1747524269509,11.81707412,2473.4,2473.0,0.38309169]
[1747524269909,4.04318344,2473.3,2473.0,0.38309169]
[1747524270144,4.04332245,2473.3,2473.0,0.38309169]
[1747524271219,7.774,2473.4,2473.0,0.38309169]
[1747524271376,4.04350814,2473.1,2473.0,0.38309169]
[1747524272023,4.04345459,2473.2,2472.8,4.42708064]
[1747524272305,4.04345459,2473.2,2472.8,0.38309169]
[1747524272511,4.04345459,2473.2,2472.8,5.39768207]
[1747524272918,4.04345459,2473.2,2472.8,1.35368397]
[1747524273127,4.04345459,2473.2,2472.8,5.39767515]
[1747524273279,4.04345459,2473.2,2472.8,1.35368397]
[1747524273478,4.04345459,2473.2,2472.8,5.39767869]
[1747524274122,11.81710058,2473.4,2472.9,4.42691795]
[1747524274305,11.81710058,2473.4,2473.0,0.753]
[1747524274306,7.775,2473.4,2473.0,0.753]
[1747524274614,7.769,2473.3,2473.0,4.79658963]
[1747524274816,17.47,2473.5,2473.1,4.04340784]
[1747524275030,7.769,2473.4,2473.1,4.04340784]
[1747524275321,7.769,2473.4,2473.0,4.79659583]
[1747524275527,7.769,2473.4,2473.2,0.38309169]
[1747524275885,7.769,2473.3,2473.2,0.38309169]
[1747524279740,29.28786186,2473.5,2473.2,0.38309169]
[1747524279956,7.767,2473.3,2473.2,0.38309169]
[1747524280955,7.767,2473.3,2473.2,4.42643634]
[1747524281248,7.767,2473.3,2473.2,0.38309169]
[1747524281809,7.767,2473.3,2473.2,4.42643634]
[1747524282104,7.767,2473.3,2473.2,0.38309169]
[1747524283416,17.47,2473.5,2473.2,4.42642949]
[1747524283643,7.766,2473.4,2473.2,0.38309169]
[1747524284045,7.766,2473.7,2473.5,4.0427396]
[1747524284354,7.765,2473.6,2473.4,4.04293796]
[1747524284550,0.7748,2474.1,2473.6,4.04263216]
[1747524284776,15.531,2474.0,2473.6,4.04269081]
[1747524285274,7.765,2473.9,2473.5,4.04275599]
[1747524285575,7.765,2473.9,2473.6,0.38309169]
[1747524285879,7.765,2473.8,2473.6,0.38309169]
[1747524286078,11.80744103,2473.8,2473.6,0.38309169]
[1747524286754,11.80644103,2473.8,2473.6,0.38309169]
[1747524286954,11.80644103,2473.8,2473.4,0.38309169]
[1747524287782,11.80644103,2473.8,2473.4,4.42608937]
[1747524288782,11.80644103,2473.8,2473.5,0.38309169]
[1747524290046,11.80644103,2473.8,2473.6,0.38309169]
[1747524290776,4.04244103,2473.8,2473.6,0.38309169]
[1747524290942,11.80544103,2473.8,2473.6,0.38309169]
[1747524291380,4.04252738,2473.7,2473.6,0.38309169]
[1747524291677,4.04252738,2473.7,2473.5,0.38309169]
[1747524292275,12.55884803,2473.8,2473.5,0.38309169]
[1747524292480,4.04257095,2473.7,2473.5,0.38309169]
[1747524292874,4.04257095,2473.7,2473.6,0.38309169]
[1747524293579,12.55886229,2473.8,2473.6,0.38309169]
[1747524293891,4.04252738,2473.7,2473.6,0.38309169]
[1747524295155,4.04285425,2473.5,2473.4,0.38309169]
[1747524295337,11.80785425,2473.5,2473.4,0.38309169]
[1747524296754,4.04256803,2473.7,2473.4,0.38309169]
[1747524297080,15.526,2473.6,2473.4,0.38309169]
[1747524297580,15.526,2473.6,2473.5,0.38309169]
[1747524298788,4.04253224,2473.7,2473.5,0.38309169]
[1747524298992,7.76,2473.6,2473.5,0.38309169]
[1747524299900,11.80269081,2473.6,2473.5,0.38309169]
[1747524300104,12.58559081,2473.6,2473.5,0.38309169]
[1747524301896,4.04285425,2473.5,2473.4,0.38309169]
[1747524303595,4.04285425,2473.5,2473.4,0.33309169]
[1747524303897,12.85885425,2473.5,2473.4,0.33309169]
[1747524304679,4.04350814,2473.1,2473.0,0.48157504]
[1747524304910,28.38250814,2473.1,2473.0,0.48157504]
[1747524307423,4.04461419,2472.5,2472.1,0.48157504]
[1747524307724,7.759,2472.4,2472.1,1.07635212]
[1747524308920,4.04482992,2472.3,2472.1,1.07635212]
[1747524309088,4.04498017,2472.2,2472.1,0.48157504]
[1747524311026,4.8608492,2472.3,2471.6,0.7788]
[1747524311027,4.04552813,2471.9,2471.6,0.7788]
[1747524311326,11.80352813,2471.9,2471.6,0.7788]
[1747524311618,4.04565279,2471.8,2471.6,0.7788]
[1747524311824,4.0459947,2471.6,2471.4,1.54187094]
[1747524312024,11.81212583,2471.5,2471.4,0.48157504]
[1747524312322,12.62192583,2471.5,2471.4,0.48157504]
[1747524312703,7.758,2471.5,2471.4,1.24017504]
[1747524312903,7.758,2471.5,2471.4,5.28646459]
[1747524313211,7.758,2471.5,2471.4,2.2376863]
[1747524313419,4.85521085,2472.0,2471.4,2.2376863]
[1747524313420,0.8098,2472.0,2471.4,6.2838696]
[1747524313724,7.758,2471.6,2471.4,6.28389069]
[1747524314022,4.04537798,2472.0,2471.6,4.04595537]
[1747524314228,4.04521269,2472.1,2471.6,4.04595537]
[1747524314424,19.56132743,2472.0,2471.6,4.04595537]
[1747524315035,15.516,2472.0,2471.6,4.04595537]
[1747524315200,4.04521591,2472.1,2471.6,4.04595537]
[1747524315491,15.516,2472.0,2471.6,4.04595537]
[1747524316333,19.56132803,2472.0,2471.6,4.04595681]
[1747524316932,15.516,2472.0,2471.6,4.04595681]
[1747524317433,4.85486052,2472.2,2471.7,4.04575071]
[1747524317615,15.517,2472.1,2471.8,0.8159]
[1747524317932,19.56223318,2472.1,2471.8,0.8159]
[1747524319329,7.758,2472.0,2471.8,4.86141721]
[1747524319855,4.0448881,2472.3,2471.8,4.86138025]
[1747524320000,14.8605538,2472.9,2472.2,0.8159]
[1747524320209,11.80210533,2472.8,2472.3,4.04473686]
[1747524320434,4.04418606,2472.7,2472.2,4.86079068]
[1747524320634,4.0443465,2472.6,2472.2,4.86079068]
[1747524320842,4.04425482,2472.7,2472.2,4.86079068]
[1747524321137,4.04439029,2472.6,2472.2,1.7614934]
[1747524321314,4.04462891,2472.5,2472.2,0.8159]
[1747524321637,4.04440185,2472.6,2472.2,0.8159]
[1747524324117,4.0442113,2472.7,2472.2,0.8159]
[1747524324118,4.04423103,2472.7,2472.2,4.860804]
[1747524324332,7.756,2472.5,2472.2,4.860804]
[1747524324531,7.756,2472.6,2472.3,0.945589]
[1747524324734,11.80042558,2472.6,2472.2,0.8159]
[1747524325140,4.04477529,2472.4,2472.0,0.7915]
[1747524325324,4.04491745,2472.3,2472.0,0.7915]
[1747524325844,4.04473239,2472.4,2472.0,0.7915]
[1747524326345,4.04473239,2472.4,2472.0,2.45565982]
[1747524326548,4.85292789,2472.3,2472.0,1.66415982]
[1747524326726,4.04521891,2472.1,2471.7,0.48157504]
[1747524326926,11.80021891,2472.1,2471.7,0.48157504]
[1747524327755,7.755,2472.1,2471.9,4.04538032]
[1747524328156,7.755,2472.1,2471.8,5.22026508]
[1747524328457,7.755,2472.1,2471.8,6.23872335]
[1747524328642,0.8081,2472.6,2472.0,4.04515845]
[1747524328957,7.755,2472.5,2472.2,0.7915]
[1747524330294,10.05,2472.9,2472.2,0.7915]
[1747524330594,8.0,2473.1,2472.2,0.7915]
[1747524330595,4.04451726,2472.5,2472.2,0.7915]
[1747524331779,4.04438404,2472.6,2472.3,0.38388049]
[1747524332376,4.04450128,2472.5,2472.3,0.38388049]
[1747524333074,4.04450128,2472.5,2472.4,0.38388049]
[1747524334550,4.04450128,2472.5,2472.1,0.7915]
[1747524334551,4.04478179,2472.4,2472.2,0.38388049]
[1747524335778,7.753,2472.3,2472.2,0.38388049]
[1747524335979,11.79781656,2472.3,2472.2,0.38388049]
[1747524338270,4.04498017,2472.2,2472.1,0.38388049]
[1747524339679,4.0451438,2472.1,2472.0,0.38388049]
[1747524342397,19.5551438,2472.1,2472.0,0.38388049]
[1747524342604,4.04547109,2471.9,2471.8,0.86545553]
[1747524343506,4.04539546,2472.0,2471.8,0.86545553]
[1747524343711,4.04547109,2471.9,2471.8,0.86545553]
[1747524344307,4.04547109,2471.9,2471.8,0.38388049]
[1747524345895,7.751,2471.9,2471.8,0.38388049]
[1747524346213,15.502,2471.9,2471.7,0.7689]
[1747524346413,7.751,2471.8,2471.7,0.7689]
[1747524347312,7.751,2471.8,2471.7,4.81469843]
[1747524347479,7.751,2471.8,2471.7,0.7689]
[1747524347807,7.751,2471.8,2471.7,1.15278049]
[1747524349211,4.04543324,2472.0,2471.7,1.15278049]
[1747524349396,7.75,2471.9,2471.7,1.15278049]
[1747524349707,7.75,2471.9,2471.8,0.38388049]
[1747524352216,11.79547109,2471.9,2471.8,0.38388049]
[1747524352686,7.75,2471.9,2471.8,0.38388049]
[1747524355843,4.04524183,2472.1,2471.8,0.38388049]
[1747524356019,11.79331718,2472.0,2471.8,0.38388049]
[1747524356347,7.748,2472.0,2471.8,0.38388049]
[1747524356531,11.79330866,2472.0,2471.8,0.38388049]
[1747524357942,11.79330866,2472.0,2471.9,0.38388049]
[1747524359521,11.79330866,2472.0,2471.7,0.38388049]
[1747524359705,4.04504892,2472.2,2471.9,0.7913]
[1747524359910,15.499,2472.1,2471.9,0.7913]
[1747524360455,4.0451438,2472.1,2471.7,1.17518049]
[1747524360610,7.747,2472.0,2471.7,1.17518049]
[1747524360947,7.747,2472.0,2471.7,5.79114232]
[1747524361348,7.747,2472.0,2471.8,0.38388049]
[1747524361515,7.747,2472.0,2471.8,4.42949928]
[1747524361844,7.747,2472.0,2471.8,0.38388049]
[1747524362243,11.79707641,2472.2,2471.8,0.38388049]
[1747524362244,7.747,2472.1,2471.8,0.38388049]
[1747524362448,7.747,2472.1,2471.9,0.38388049]
[1747524363247,11.79214599,2472.1,2471.9,0.38388049]
[1747524363449,4.04543805,2472.0,2471.8,0.48157504]
[1747524363758,11.79225067,2472.1,2471.8,0.48157504]
[1747524364917,4.04530744,2472.0,2471.9,0.38517323]
[1747524367340,11.79030744,2472.0,2471.9,0.38517323]
[1747524374363,4.04530744,2472.0,2471.9,0.38517323]
[1747524374667,7.743,2472.0,2471.9,0.38517323]
[1747524376282,7.743,2472.0,2471.9,0.86674827]
[1747524376484,11.78830744,2472.0,2471.9,0.86674827]
[1747524377087,12.56550744,2472.0,2471.9,0.86674827]
[1747524378686,11.78830744,2472.0,2471.9,0.86674827]
[1747524379290,4.82211816,2472.3,2471.9,0.86674827]
[1747524379477,15.484,2472.2,2471.9,5.72228466]
[1747524379665,7.741,2472.1,2471.9,1.67684827]
[1747524379866,11.78799079,2472.2,2472.0,0.38517323]
[1747524380095,11.7861438,2472.1,2472.0,0.38517323]
[1747524381619,12.6107438,2472.1,2472.0,0.38517323]
[1747524383995,20.6107438,2472.1,2472.0,0.38517323]
[1747524385121,30.6607438,2472.1,2472.0,0.38517323]
[1747524386121,30.95824414,2472.1,2472.0,0.38517323]
[1747524386420,30.95824414,2472.1,2470.9,2.05450012]
[1747524386421,4.04650283,2471.3,2471.0,0.86674827]
[1747524386596,7.739,2471.2,2471.0,0.86674827]
[1747524386788,4.04572892,2471.8,2471.0,0.86674827]
[1747524386987,4.04633516,2471.4,2471.0,1.12541118]
[1747524387188,4.04623431,2471.5,2471.0,1.12541118]
[1747524387388,7.739,2471.4,2471.2,4.8246429]
[1747524387610,7.739,2471.4,2471.3,0.38517323]
[1747524387611,7.738,2471.4,2471.3,0.38517323]
[1747524388018,7.739,2471.4,2471.3,0.38517323]
[1747524388217,7.739,2471.4,2471.3,4.43162651]
[1747524388421,7.739,2471.4,2471.3,0.38517323]
[1747524388800,4.04571679,2471.8,2471.3,4.43156095]
[1747524388995,7.739,2471.5,2471.3,0.38517323]
[1747524389639,7.739,2471.5,2471.4,0.38517323]
[1747524392318,11.78512583,2471.5,2471.4,0.38517323]
[1747524392840,7.739,2471.5,2471.4,0.38517323]
[1747524395307,11.78512583,2471.5,2471.4,0.38517323]
[1747524400253,4.84114923,2471.7,2471.4,0.38517323]
[1747524400424,4.04584923,2471.7,2471.4,1.15437323]
[1747524400626,7.736,2471.6,2471.4,1.15437323]
[1747524400826,11.78984923,2471.7,2471.4,1.15437323]
[1747524401071,7.735,2471.6,2471.4,1.15437323]
[1747524401751,7.735,2471.6,2471.5,0.38517323]
[1747524403674,11.78984923,2471.7,2471.5,0.38517323]
[1747524403873,7.735,2471.6,2471.5,0.38517323]
[1747524404369,7.734,2471.6,2471.5,0.38517323]
[1747524407862,4.04571656,2471.8,2471.5,0.38517323]
[1747524408177,7.733,2471.6,2471.5,0.38517323]
[1747524414283,4.04571701,2471.8,2471.5,0.38517323]
[1747524414486,7.731,2471.7,2471.5,0.38517323]
[1747524416178,7.731,2471.7,2471.6,0.38517323]
[1747524416987,4.04571701,2471.8,2471.6,0.38517323]
[1747524417186,7.73,2471.7,2471.6,0.38517323]
[1747524417788,11.77579843,2471.7,2471.6,0.38517323]
[1747524420184,7.73,2471.7,2471.6,0.38517323]
[1747524420385,12.04537168,2472.0,2471.6,0.38517323]
[1747524420586,7.728,2471.9,2471.7,0.8096]
[1747524420771,7.728,2471.9,2471.6,0.38517323]
[1747524420772,4.04570333,2471.8,2471.6,0.38517323]
[1747524421694,11.77354654,2471.9,2471.6,0.38517323]
[1747524421994,11.77354654,2471.9,2471.7,0.38517323]
[1747524422211,4.04563476,2471.8,2471.7,0.38517323]
[1747524422764,11.77356942,2471.9,2471.7,0.38517323]
[1747524423174,4.04563476,2471.8,2471.5,1.29117504]
[1747524423371,8.5035,2471.9,2471.5,0.48157504]
[1747524423590,4.04596212,2471.6,2471.5,0.48157504]
[1747524425669,12.04541175,2472.0,2471.5,0.38558872]
[1747524425869,8.0,2472.0,2471.6,0.8035]
[1747524426087,7.726,2471.9,2471.7,4.04577091]
[1747524426620,0.7647,2472.3,2471.7,0.9280873]
[1747524426827,21.41583939,2472.6,2472.0,4.04516808]
[1747524427109,15.459,2472.5,2472.3,0.8035]
[1747524427673,15.459,2472.5,2472.4,0.38558872]
[1747524428172,19.50348938,2472.5,2472.4,0.38558872]
[1747524428497,15.459,2472.5,2472.4,0.38558872]
[1747524431108,21.51440196,2472.6,2472.4,0.38558872]
[1747524431306,7.724,2472.5,2472.4,0.38558872]
[1747524431499,7.724,2472.5,2472.2,0.29761976]
[1747524431699,7.724,2472.5,2472.1,5.33014107]
[1747524431873,7.724,2472.5,2472.1,6.38689394]
[1747524432610,7.724,2472.5,2472.2,4.04496604]
[1747524432814,7.724,2472.5,2472.1,6.38687581]
[1747524434011,7.724,2472.5,2472.1,6.69341233]
[1747524434205,7.724,2472.5,2472.2,0.38411267]
[1747524434512,7.724,2472.5,2472.2,4.42907659]
[1747524435032,7.724,2472.5,2472.3,0.38411267]
[1747524435210,7.724,2472.5,2472.3,4.42890819]
[1747524435512,17.47,2472.6,2472.3,5.49298544]
[1747524435730,7.732,2472.8,2472.5,4.84298938]
[1747524435912,7.721,2472.7,2472.6,4.04431874]
[1747524436249,7.721,2472.7,2472.5,0.7985]
[1747524437046,7.721,2472.7,2472.5,4.84295298]
[1747524437256,0.7799,2473.3,2472.9,4.04370225]
[1747524437417,15.442,2473.1,2473.0,4.04367165]
[1747524437748,7.721,2473.1,2473.0,4.04367165]
[1747524439240,7.721,2473.1,2472.8,0.7985]
[1747524439906,7.721,2473.1,2472.8,4.84240655]
[1747524440105,7.721,2473.1,2472.8,5.78606255]
[1747524440309,7.721,2473.1,2472.9,0.38304946]
[1747524440503,7.719,2473.1,2472.9,0.38304946]
[1747524441650,7.719,2473.1,2472.8,5.78606255]
[1747524442610,7.718,2473.1,2472.8,5.78606255]
[1747524443257,7.718,2473.1,2472.8,1.742156]
[1747524443943,7.718,2473.1,2472.8,5.78614774]
[1747524445751,7.718,2473.1,2472.9,1.03802915]
[1747524446154,7.718,2473.1,2472.8,0.7985]
[1747524446477,11.76151718,2473.1,2472.8,0.7985]
[1747524446654,11.76155477,2473.1,2472.7,4.59408582]
[1747524447665,11.76155477,2473.1,2472.6,0.7518]
[1747524447666,4.04375075,2473.0,2472.6,0.7518]
[1747524447837,4.04375075,2473.0,2472.6,4.79612121]
[1747524448021,4.04384591,2472.9,2472.7,0.38295681]
[1747524448225,4.0439987,2472.8,2472.7,0.38295681]
[1747524448423,4.8473987,2472.8,2472.7,0.38295681]
[1747524449552,4.0439987,2472.8,2472.7,0.38295681]
[1747524449753,4.0439987,2472.8,2472.3,4.04474259]
[1747524449955,4.04417984,2472.7,2472.3,4.04474259]
[1747524450469,4.04424256,2472.7,2472.2,4.04489725]
[1747524450664,4.04432996,2472.6,2472.2,4.04489725]
[1747524451262,4.04424415,2472.7,2472.2,4.04489725]
[1747524451474,4.04424415,2472.7,2472.3,4.04479811]
[1747524451671,4.04424415,2472.7,2472.4,0.38322622]
[1747524452671,4.04391532,2472.9,2472.4,4.42781862]
[1747524452851,7.714,2472.6,2472.5,0.7996]
[1747524453041,7.714,2472.6,2472.5,1.18282622]
[1747524453243,7.714,2472.6,2472.5,5.2273156]
[1747524453751,7.713,2472.6,2472.5,5.2273156]
[1747524454069,7.713,2472.6,2472.5,1.18282622]
[1747524455104,7.713,2472.6,2472.5,0.38322622]
[1747524456676,7.713,2472.6,2472.4,0.38322622]
[1747524458680,7.713,2472.6,2472.2,4.52644989]
[1747524458681,7.713,2472.6,2472.5,0.38322622]
[1747524459854,4.04389467,2472.9,2472.5,0.38322622]
[1747524460056,7.711,2472.8,2472.5,0.38322622]
[1747524460244,7.719,2473.0,2472.5,5.65411158]
[1747524460449,7.711,2472.9,2472.6,4.04420725]
[1747524460645,7.719,2473.0,2472.7,4.04415021]
[1747524460860,7.711,2472.9,2472.7,4.04415021]
[1747524461180,4.81051292,2473.2,2472.7,4.04415021]
[1747524461342,7.711,2472.9,2472.7,4.04408394]
[1747524461539,7.711,2472.9,2472.6,4.42747014]
[1747524461744,11.75483595,2472.9,2472.6,1.40122258]
[1747524461968,7.711,2472.9,2472.6,0.38322622]
[1747524462176,7.711,2472.9,2472.7,0.38322622]
[1747524463674,7.711,2472.9,2472.8,0.38322622]
[1747524464079,7.71,2473.0,2472.9,0.7882]
[1747524464394,4.04138772,2474.4,2473.3,4.04310471]
[1747524464395,4.04245282,2473.8,2473.3,4.04310471]
[1747524464541,10.05,2474.0,2473.4,4.83117353]
[1747524464542,7.71,2473.5,2473.4,4.83117353]
[1747524464943,7.719,2473.7,2473.4,4.83117353]
[1747524465266,7.709,2473.6,2473.4,4.83117353]
[1747524465471,7.709,2473.7,2473.4,4.83117353]
[1747524465783,7.709,2473.7,2473.5,0.38322622]
[1747524466388,7.708,2473.8,2473.5,0.90467982]
[1747524466561,7.708,2473.8,2473.5,4.42598016]
[1747524466961,4.04194967,2474.1,2473.6,4.04267617]
[1747524467289,4.04230696,2473.9,2473.5,0.38322622]
[1747524467488,4.04230696,2473.9,2473.6,0.38322622]
[1747524467788,4.04252738,2473.7,2473.6,0.38322622]
[1747524468175,4.04252738,2473.7,2473.5,0.38322622]
[1747524469091,3.99261027,2473.7,2473.5,0.38322622]
[1747524469589,3.94261027,2473.7,2473.5,0.38322622]
[1747524469794,4.04269081,2473.6,2473.5,0.38322622]
[1747524471392,4.04285425,2473.5,2473.4,0.38322622]
[1747524471571,11.74885425,2473.5,2473.4,0.38322622]
[1747524473672,11.74885425,2473.5,2473.3,0.38322622]
[1747524474827,0.7615,2474.2,2473.4,0.8242]
[1747524475116,4.04196935,2474.1,2473.5,0.38322622]
[1747524475294,4.0423615,2473.9,2473.5,0.38322622]
[1747524475605,11.74610664,2474.0,2473.5,0.9082614]
[1747524475795,4.04227623,2473.9,2473.5,0.9082614]
[1747524477120,4.04227623,2473.9,2473.6,0.38322622]
[1747524478107,4.04248338,2473.8,2473.6,0.38322622]
[1747524478772,4.04248338,2473.8,2473.5,0.52503518]
[1747524479075,4.04248338,2473.8,2473.6,0.53922405]
[1747524479266,4.04248338,2473.8,2473.4,0.8242]
[1747524479808,4.042273,2473.9,2473.4,0.8242]
[1747524479994,7.702,2473.8,2473.4,4.86710009]
[1747524480310,7.702,2473.8,2473.4,0.8242]
[1747524480611,4.04295601,2473.5,2473.2,0.48157504]
[1747524480774,4.04295601,2473.5,2473.2,1.16631891]
[1747524482115,4.04295601,2473.5,2473.3,0.38282771]
[1747524482699,4.0425841,2473.7,2473.3,0.38282771]
[1747524483317,0.8267,2473.9,2473.3,0.38282771]
[1747524483497,15.407,2473.8,2473.3,4.42588206]
[1747524483693,19.44948285,2473.8,2473.4,0.87357342]
[1747524484096,4.04255061,2473.7,2473.4,0.87357342]
[1747524485141,7.7,2473.6,2473.5,0.38282771]
[1747524485521,11.74853374,2473.7,2473.5,0.38282771]
[1747524485682,11.74269081,2473.6,2473.5,0.38282771]
[1747524486401,0.8267,2474.1,2473.5,1.21522771]
[1747524486609,4.0424597,2473.8,2473.5,1.21522771]
[1747524487837,4.0424597,2473.8,2473.5,0.8324]
[1747524488127,0.8267,2474.1,2473.7,4.04242827]
[1747524488305,0.8267,2474.1,2473.7,4.04239755]
[1747524488306,7.699,2474.0,2473.7,4.04239755]
[1747524488507,7.706,2474.1,2473.6,4.04269081]